Cogmind - Beta 9.4 @@@ ROGUE MODE // 2020.03.13 @ 12:13:01 Player: Starwell Result: Destroyed by G-34 Mercenary with Small Laser Performance ------------- Evolutions (1) 500 Regions Visited (4) 800 Robots Destroyed (22) 110 Value Destroyed (671) 671 Prototype IDs (2) 40 Alien Tech Used (0) 0 Bonus (440) 440 TOTAL SCORE: 2561 Bonus ------- Follower Combat Kills 245 Entered Garrisons 200 Friendly Fire -5 Cogmind --------- Core Integrity 0/400 Matter 300/300 Energy 400/400 System Corruption 0% Temperature Cool (6) Movement Walking (120) Location -9/Garrison Parts ------- > --- POWER (1) -------- (None) > --- PROPULSION (2) --- Aluminum Leg Improved Aluminum Leg > --- UTILITY (2) ------ Compact Battery > --- WEAPON (4) ------- (None) > --- INVENTORY (4) ---- Power Amplifier Small Storage Unit Peak State ------------ > --- POWER ------------ Cooled Ion Engine > --- PROPULSION ------- Aluminum Leg Aluminum Leg > --- UTILITY ---------- Improved Heat Sink Compact Battery > --- WEAPON ----------- Beam Rifle Particle Cannon Advanced Beam Cannon Mining Laser > --- INVENTORY -------- Light Treads Power Amplifier [Rating: 19] Favorites ----------- Power Ion Engine Engine Ion Engine Propulsion Aluminum Leg Treads Light Treads Leg Aluminum Leg Utility Targeting Computer Device Improved Heat Sink Storage Compact Battery Processor Targeting Computer Protection Light Armor Plating Weapon Assault Rifle Energy Gun Small Laser Energy Cannon Particle Cannon Ballistic Gun Assault Rifle Special Weapon Mining Laser Build | -11 -10 -9 -9 -9 ------- Run | Scr Mat Mat Sto Gar Slots Evolved 2 | . . 2 . . Power . | . . . . . Propulsion . | . . . . . Utility . | . . . . . Weapon 2 | . . 2 . . Parts Attached 33 | 4 1 6 13 9 Power 4 | . . 1 2 1 Engine 4 | . . 1 2 1 Core . | . . . . . Reactor . | . . . . . Propulsion 12 | 2 . . 4 6 Treads 3 | . . . . 3 Leg 9 | 2 . . 4 3 Wheel . | . . . . . Hover . | . . . . . Flight . | . . . . . Utility 6 | . 1 1 2 2 Device 1 | . . . . 1 Storage 2 | . . . 1 1 Processor 2 | . 1 . 1 . Hackware . | . . . . . Protection 1 | . . 1 . . Artifact . | . . . . . Weapon 11 | 2 . 4 5 . Energy Gun 3 | . . 2 1 . Energy Cannon 3 | . . . 3 . Ballistic Gun 4 | 2 . 2 . . Ballistic Cannon . | . . . . . Launcher . | . . . . . Special Weapon 1 | . . . 1 . Impact Weapon . | . . . . . Slashing Weapon . | . . . . . Piercing Weapon . | . . . . . Special Melee Weapon . | . . . . . Unidentified Prototypes 2 | . . . 2 . Parts Lost 13 | . . . 6 7 Power 1 | . . . 1 . Propulsion 5 | . . . 2 3 Utility . | . . . . . Weapon 7 | . . . 3 4 Highest Loss Streak 5 | . . . 4 5 Average Slot Usage (%) 77 | . 68 90 84 62 Engine 6 | . . 11 5 8 Treads 5 | . . . . 16 Leg 16 | . 28 22 20 4 Storage 5 | . . . 3 10 Processor 9 | . 11 11 14 . Protection 2 | . . 2 3 . Energy Gun 11 | . . 22 13 8 Energy Cannon 5 | . . . 8 2 Ballistic Gun 10 | . 28 22 11 . Special Weapon 3 | . . . 2 8 Naked Turns . | . . . . . Heaviest Build 21 | 3 3 17 17 21 Greatest Support 40 | 3 3 20 20 40 Greatest Overweight (x) 1 | . . . 1 1 Average Overweight (x) . | . . . . . Largest Inventory Capacity 6 | 4 4 4 6 6 Average Capacity 4 | 4 4 4 4 4 Most Carried 6 | 4 4 4 6 6 Average Carried 3 | 2 4 3 4 3 Final Capacity 6 | 4 4 4 6 4 Final Carried 6 | 4 4 4 6 2 Class Distribution -------------------- 37% | Gunner 29% | Mutant 22% | Scavenger-Mutant 11% | Scavenger-Gunner Dominant Class ---------------- Mutant | -10/Materials Gunner | -9/Materials Gunner | -9/Storage Scavenger-Mutant | -9/Garrison Resources | -11 -10 -9 -9 -9 ----------- Run | Scr Mat Mat Sto Gar Matter Collected 644 | 221 . 54 294 75 Remotely . | . . . . . Salvage Created 911 | 28 . 54 566 263 Parts 41 | 5 . 2 27 7 Haulers Intercepted 3 | . . . 3 . Recyclers Shooed . | . . . . . Parts Field Recycled . | . . . . . Retrieved Matter . | . . . . . Parts Self-Destructed . | . . . . . Prevented . | . . . . . Kills | -11 -10 -9 -9 -9 ------- Run | Scr Mat Mat Sto Gar Combat Hostiles Destroyed 17 | . . 1 8 8 Melee 2 | . . . . 2 Guns 7 | . . 1 4 2 Cannons 8 | . . . 4 4 Classes Destroyed 8 | 1 . 1 5 1 Tunneler 1 | 1 . . . . Hauler 3 | . . . 3 . Recycler 1 | . . . 1 . Swarmer 3 | . . . . 3 Grunt 5 | . . . 5 . Brawler 1 | . . . 1 . Duelist 5 | . . . 1 4 Sentry 3 | . . 1 1 1 Best Kill Streak 4 | 1 . 1 4 2 Combat Bots Only 4 | . . 1 4 2 Max Kills in Single Turn 2 | 1 . 1 2 1 Gunslinging 1 | . . . 1 . Exploded . | . . . . . Melee 1 | . . . . 1 Uniques/NPCs Destroyed . | . . . . . Combat | -11 -10 -9 -9 -9 -------- Run | Scr Mat Mat Sto Gar Damage Taken 1896 | . 17 177 664 1038 Core 403 | . . 59 146 198 Absorbed by Shields . | . . . . . Core Remaining (%) 100 | 100 100 . . . Volleys Fired 60 | 2 . 4 33 21 Largest 4 | 2 . 4 4 3 Hottest 224 | 40 . 148 192 224 Shots Fired 158 | 4 . 16 101 37 Gun 124 | 4 . 16 83 21 Cannon 29 | . . . 17 12 Launcher . | . . . . . Special 5 | . . . 1 4 Kinetic 55 | 4 . 8 43 . Thermal 103 | . . 8 58 37 Explosive . | . . . . . Electromagnetic . | . . . . . Robot Hit Streak 12 | 1 . 4 12 7 Robot Miss Streak 7 | 1 . 7 4 3 Penetration Max . | . . . . . Secondary Targets 2 | . . . 2 . Max Gunslinging Chain 2 | . . . 2 . Shots Hit Robots 103 | 2 . 7 69 25 Core Hits 60 | 1 . 6 31 22 Critical Hits . | . . . . . Critical Kills . | . . . . . Critical Parts Destroyed . | . . . . . Melee Attacks . | . . . . . Impact . | . . . . . Slashing . | . . . . . Piercing . | . . . . . Sneak Attacks . | . . . . . Combat Hostiles . | . . . . . Follow-up Attacks . | . . . . . Damage Inflicted 1366 | 28 . 47 787 504 Guns 842 | 28 . 47 581 186 Cannons 431 | . . . 206 225 Explosions . | . . . . . Melee . | . . . . . Ramming 21 | . . . . 21 Kinetic 323 | 28 . 11 284 . Thermal 1022 | . . 36 503 483 Explosive . | . . . . . Electromagnetic . | . . . . . Impact . | . . . . . Slashing . | . . . . . Piercing . | . . . . . Highest Corruption . | . . . . . Average Corruption . | . . . . . Corruption Purged . | . . . . . Overload Shots . | . . . . . Overflow Damage . | . . . . . Projectiles . | . . . . . Explosions . | . . . . . Melee . | . . . . . Knockbacks . | . . . . . Impact . | . . . . . Kinetic . | . . . . . Secondary . | . . . . . Self-Inflicted Damage 1 | . . . . 1 Shots . | . . . . . Rammed 27 | . . . . 27 Targets Rammed 29 | . . . . 29 Kicked 1 | . . . . 1 Crushed 1 | . . . . 1 Highest Temperature 350 | . . 136 350 333 Average Temperature 106 | . . 59 117 93 Received Heat Transfer 468 | . 9 54 204 201 Siege Activations . | . . . . . Robots Corrupted . | . . . . . Combat Hostiles . | . . . . . Parts Fried . | . . . . . Impact Corruptions . | . . . . . Robots Melted . | . . . . . Combat Hostiles . | . . . . . Parts Melted 2 | . . . . 2 Heat Transferred 1924 | . . 45 841 1038 Parts Sabotaged . | . . . . . Parts Stolen . | . . . . . Parts Stripped . | . . . . . Power Chain Reactions . | . . . . . Missiles Intercepted . | . . . . . Alert | -11 -10 -9 -9 -9 ------- Run | Scr Mat Mat Sto Gar Peak Influence 375 | 5 17 72 375 76 Average Influence 119 | 1 14 38 201 58 Maximum Alert Level 1 | . . . 1 . Low Security (%) 79 | 100 100 100 56 100 Level 1 20 | . . . 43 . Level 2 . | . . . . . Level 3 . | . . . . . Level 4 . | . . . . . Level 5 . | . . . . . High Security . | . . . . . Max Security . | . . . . . Squads Dispatched 5 | . . 1 4 . Investigation 1 | . . . 1 . Extermination . | . . . . . Reinforcement 2 | . . 1 1 . Assault 2 | . . . 2 . Garrison . | . . . . . Intercept . | . . . . . Construction Impeded . | . . . . . Haulers Reinforced . | . . . . . Stealth | -11 -10 -9 -9 -9 --------- Run | Scr Mat Mat Sto Gar Distress Signals 2 | . . . 2 . Communications Jammed . | . . . . . Distress Signals . | . . . . . Times Spotted 46 | . 2 2 26 16 Peak Tracking Total 8 | . 2 3 8 6 Tactical Retreats 4 | . . . 2 2 Traps | -11 -10 -9 -9 -9 ------- Run | Scr Mat Mat Sto Gar Traps Triggered 1 | . . . 1 . Indirectly . | . . . . . Trap Hack Attempts . | . . . . . Triggered . | . . . . . Disarmed . | . . . . . Reprogrammed . | . . . . . Reused . | . . . . . Traps Extracted . | . . . . . Installed . | . . . . . Triggered . | . . . . . Machines | -11 -10 -9 -9 -9 ---------- Run | Scr Mat Mat Sto Gar Machines Disabled 2 | . . . 2 . Max in Single Turn 1 | . . . 1 . Machines Sabotaged . | . . . . . Garrisons Compromised . | . . . . . Overloaded Fab Kills . | . . . . . Fab Network Shutdowns . | . . . . . Hacking | -11 -10 -9 -9 -9 --------- Run | Scr Mat Mat Sto Gar Machines Accessed 10 | . 2 1 7 . Terminals 8 | . 2 1 5 . Fabricators . | . . . . . Repair Stations . | . . . . . Recycling Units 1 | . . . 1 . Scanalyzers . | . . . . . Garrison Access 1 | . . . 1 . Total Hacks 21 | . 3 2 16 . Successful 10 | . 3 1 6 . Failed 11 | . . 1 10 . Catastrophic 2 | . . . 2 . Database Lockouts . | . . . . . Manual 12 | . 2 1 9 . Terminals 18 | . 3 2 13 . Fabricators . | . . . . . Repair Stations . | . . . . . Recycling Units 2 | . . . 2 . Scanalyzers . | . . . . . Garrison Access 1 | . . . 1 . Terminal Hacks 6 | . 1 1 4 . Open Door 1 | . . . 1 . Terminal Index 2 | . 1 1 . . Unreport Threat 1 | . . . 1 . Recall Investigation 1 | . . . 1 . Zone Layout 1 | . . . 1 . Fabricator Hacks . | . . . . . Repair Station Hacks . | . . . . . Recycling Unit Hacks . | . . . . . Scanalyzer . | . . . . . Garrison Access Hacks 1 | . . . 1 . Unlock Access 1 | . . . 1 . Unauthorized Hacks 7 | . 4 1 2 . Terminals 3 | . 2 . 1 . Botnet 3 | . 2 . 1 . Fabricators . | . . . . . Repair Stations . | . . . . . Recycling Units . | . . . . . Scanalyzers . | . . . . . Garrison Access . | . . . . . Data Cores Recovered . | . . . . . Used . | . . . . . Hacking Detections 8 | . 1 1 6 . Full Trace Events . | . . . . . Feedback Events . | . . . . . Feedback Blocked . | . . . . . Robot Schematics Acquired . | . . . . . Robots Built . | . . . . . Matter . | . . . . . Time . | . . . . . Total Robot Build Rating . | . . . . . Part Schematics Acquired . | . . . . . Parts Built . | . . . . . Matter . | . . . . . Time . | . . . . . Total Part Build Rating . | . . . . . Parts Repaired . | . . . . . Time . | . . . . . Parts Recycled . | . . . . . Recycled Matter . | . . . . . Retrieved Matter . | . . . . . Retrieved Components . | . . . . . Parts Scanalyzed . | . . . . . Part Schematics Acquired . | . . . . . Parts Damaged . | . . . . . Bothacking | -11 -10 -9 -9 -9 ------------ Run | Scr Mat Mat Sto Gar Used RIF Installer . | . . . . . Robots Hacked . | . . . . . Non-combat . | . . . . . Combat . | . . . . . Robot Hacks Applied . | . . . . . Relay Couplers Released . | . . . . . Robots Rewired . | . . . . . Allies Hacked . | . . . . . Hacks Repelled . | . . . . . Allies | -11 -10 -9 -9 -9 -------- Run | Scr Mat Mat Sto Gar Total Allies 2 | . . . 2 . Largest Group 2 | . . . 2 . Highest-Rated Group 62 | . . . 62 . Highest-Rated Ally 31 | . . . 31 . Total Orders 21 | . . . 11 10 GOTO 15 | . . . 6 9 EXPLORE 6 | . . . 5 1 Ally Attacks 24 | . . . 24 . Total Damage 419 | . . . 419 . Kills 9 | . . . 9 . Allies Corrupted . | . . . . . Allies Melted . | . . . . . Intel | -11 -10 -9 -9 -9 ------- Run | Scr Mat Mat Sto Gar Robot Analysis Total . | . . . . . Derelict Logs Recovered . | . . . . . Drone Launches 16 | . . . 14 2 Drone Recoveries . | . . . . . Exploration | -11 -10 -9 -9 -9 ------------- Run | Scr Mat Mat Sto Gar Turns Passed 898 | 41 58 95 434 270 Spaces Moved 569 | 51 105 61 271 81 Core 241 | 51 105 . 59 26 Treads 50 | . . . . 50 Legs 278 | . . 61 212 5 Wheels . | . . . . . Hover . | . . . . . Flight . | . . . . . Fastest Speed 50 | 50 50 120 50 50 Average Speed 94 | 50 50 120 104 122 Slowest Speed 160 | 50 50 120 120 160 Overloaded Moves . | . . . . . Propulsion Burnouts . | . . . . . Robots Hopped . | . . . . . Cave-ins Triggered . | . . . . . Exploration Rate (%) 28 | 4 28 10 54 44 Regions Visited 4 Branch Regions 1 Pre-discovered Areas . | . . . . . Known Exits Taken 1 | . . . 1 . Unknown Exits Taken 3 | 1 1 1 . . Scrap Searched . | . . . . . Spaces Dug 1 | . . . 1 . Terrain Destroyed 1 | . . . 1 . Melee . | . . . . . Projectile 1 | . . . 1 . AOE . | . . . . . Actions | -11 -10 -9 -9 -9 --------- Run | Scr Mat Mat Sto Gar Total 789 | 60 109 71 350 199 Wait 55 | . 4 . 4 47 Move 565 | 50 104 60 270 81 Hop . | . . . . . Pick Up 18 | 4 . 1 11 2 Fast Attach 16 | 4 1 2 6 3 Attach 14 | . . 2 6 6 Detach 8 | . . . 4 4 Swap 3 | . . 2 1 . Drop 13 | . . . 8 5 Fire 60 | 2 . 4 33 21 Melee . | . . . . . Ram 1 | . . . . 1 Kick 4 | . . . . 4 Crush 24 | . . . . 24 Escape Stasis . | . . . . . Rewire . | . . . . . Trap . | . . . . . Miscellaneous 8 | . . . 7 1 Route ------- -11/Scrapyard -10/Materials (discovered 2 exits: *Mat / [*Min]) -9/Materials -9/Storage -9/Garrison History --------- Turn | Location | Event 11 | -11/Scrapyard | Discovered new exit (range 16) 42 | -11/Scrapyard | Entered Materials 66 | -10/Materials | Discovered new exit (range 15) 93 | -10/Materials | Discovered new exit (range 16) 100 | -10/Materials | Entered another Materials area 100 | -9/Materials | Evolved 2 slots: Weapon x2 183 | -9/Materials | Discovered new exit (range 7) 195 | -9/Materials | Entered Storage 251 | -9/Storage | Met a pair of Derelict thieves 424 | -9/Storage | Build established: Gunner 447 | -9/Storage | Core integrity fell below 50% 474 | -9/Storage | Lost 4 parts (1p1n2w) 599 | -9/Storage | Identified exit to Garrison 629 | -9/Storage | Entered Garrison 629 | -9/Garrison | Accompanied by 4 allies 648 | -9/Garrison | Triggered checkpoint 650 | -9/Garrison | Triggered checkpoint 651 | -9/Garrison | Triggered checkpoint 654 | -9/Garrison | Triggered checkpoint 766 | -9/Garrison | Triggered checkpoint 770 | -9/Garrison | Triggered checkpoint 862 | -9/Garrison | Triggered checkpoint 862 | -9/Garrison | Core integrity fell below 20% 899 | -9/Garrison | Destroyed by G-34 Mercenary with Small Laser Last Messages --------------- 00862_ Beams of light sweep through the air. An alarm sounds. 00862_ Slammed into S-10 Pest. 00864_ Lgt. Treads destroyed. 00864_ Slammed into S-10 Pest. 00870_ Crushed S-10 Pest. 00870_ S-10 Pest destroyed. 00872_ Slammed into S-10 Pest. 00887_ Acquired 2 matter. 00887_ Slammed into S-10 Pest. 00888_ Acquired 3 matter. 00889_ Slammed into S-10 Pest. 00890_ Lgt. Treads destroyed. 00890_ Slammed into S-10 Pest. 00890_ S-10 Pest destroyed. 00892_ Extracted 15 energy. 00892_ Acquired 4 matter. 00893_ Acquired 6 matter. 00895_ Slammed into G-47 Trooper. 00896_ Kicked G-47 Trooper out of the way. 00897_ Slammed into G-47 Trooper. Map ----- +----------------------------------------------------+ | | | | | | | | | | | | | | | | | ????????????????????????????????????? | | ????????????????????????????????????? | | ????????????????????????????????????? | | ????????????????????????????????????? | | ????????????????????????????????????? | | ????????????????????????????????????? | | ????????????????????????????????????? | | ????????????????????????????????????? | | ????????????????????????????????????? | | ???????????????????????????????????## | | ???????????????????????????????????+ | | ???????????????????????????????????# | | ???????????????????????????????????# | | ???????????????????????????????????# | | ???????????#####???#####???#####???# | | ??????######%%%#???# #???# #???# | | ??????#!!!##g%%##### ##### ! #####% | | ??????#!%%+%@g% % !%%=*%%% | | ??????#!!!########################## | | ??????#####????????????????????????# | | ???????????????????????????????????# | | ???????????????????????????????????# | | ???????????????????????????????????# | | ???????????????????????????????????# | | ???????????????????????????????????# | | ???????????????????????????????????# | | ???????????????????????????????????# | | ?????????###???????????????????????# | | ????????##%######################### | | ????????# ! == ^* | | ????????# % /% ^ | | ????????#! % !! %% | | ????????# ########++++############ | | ????????# #??????# ???????????# | | ????????#####??????## ????????????# | | ????????????????????# ????????????# | | ????????????????????# ?????????????# | | ????????????????????# ?????????????## | | ????????????????????!???????????????? | | ???????????????????#!???????????????? | | ???????????????????#????????????????? | | ????????????????????????????????????? | +----------------------------------------------------+ Best States ------------- Heat Dissipation 42 Energy Generation 14 Energy Capacity 580 Matter Stores 300 Matter Capacity 300 Sight Range 16 Terrain Scan Density 10 Armor Coverage 150 Evasion (%) 50 Targeting Accuracy 5 Recoil Reduction 2 Item Schematics ----------------- None Robot Schematics ------------------ None Fabricated ------------ Nothing Alien Tech Used ----------------- None Achievements -------------- None Challenges ------------ None Game ------ Seed ShrapnelMachineKatana Manual? 0 Play Time 00:26:34 Cumulative 55.5 hours Start 2020.03.13 @ 11:46:47 End 2020.03.13 @ 12:13:01 Sessions 1 Manual Loads 0 Difficulty Rogue Special Mode None Game No. 38 Rogue 38 Adventurer 0 Explorer 0 Win Type - Total 0 Types 0/0/0/0/0/0/0 Lore% 34 Gallery% 48 Achievement% 36 Wizard Run 0 Options --------- ASCII 1 Keyboard 0 Movement Mouse Keybinds 0 Fullscreen 1 Font 24/Smallcaps Map View 76x50 Tactical HUD 1 Map Filters NONE Filters NONE Steam 1 RUN: 4881194d-c6d3-4c9b-9833-c2109f1f75ff